[Event "European Rapid Championship 2021"]
[Site "Katowice"]
[Date "2021.12.19"]
[Round "11.3"]
[White "Malik, Maciej"]
[Black "Paszewski, Mateusz"]
[Result "0-1"]
[ECO "D12"]
[WhiteElo "1849"]
[BlackElo "2202"]
[Annotator "NA"]
[PlyCount "110"]
[EventDate "2021.12.18"]
[EventType "swiss"]
[EventCountry "POL"]
[SourceTitle "playchess.com"]
[Source "ChessBase"]
[SourceQuality "1"]
[TimeControl "900+10"]

1. d4 {[%emt 0:00:02]} d5 {[%emt 0:00:05]} 2. Nf3 {[%emt 0:00:02]} Nf6 {
[%emt 0:00:03]} 3. e3 {[%emt 0:00:01]} Bf5 {[%emt 0:00:09]} 4. c4 {[%emt 0:00:
01]} c6 {[%emt 0:00:01]} 5. Qb3 {[%emt 0:00:00]} Qc7 {[%emt 0:00:05]} 6. Nc3 {
[%emt 0:00:02]} e6 {[%emt 0:00:01]} 7. Bd2 {[%emt 0:00:08]} a6 {[%emt 0:00:43]}
8. Rc1 {[%emt 0:00:13]} dxc4 {[%emt 0:00:02]} 9. Bxc4 {[%emt 0:00:02]} b5 {
[%emt 0:00:01]} 10. Be2 {[%emt 0:00:01]} c5 {[%emt 0:00:01]} 11. dxc5 {[%emt 0:
00:46]} Bxc5 {[%emt 0:03:00]} 12. Nd4 {[%emt 0:00:42]} Nbd7 {[%emt 0:03:20]}
13. Nxf5 {[%emt 0:00:55]} exf5 {[%emt 0:00:01]} 14. Nd5 {[%emt 0:00:04]} Qd6 {
[%emt 0:00:40]} 15. Nxf6+ {[%emt 0:00:19]} Nxf6 {[%emt 0:00:01]} 16. Bc3 {
[%emt 0:00:48]} Ne4 {[%emt 0:03:15]} 17. O-O {[%emt 0:01:23]} O-O {[%emt 0:00:
10]} 18. Rfd1 {[%emt 0:00:17]} Qe7 {[%emt 0:00:01]} 19. Bd4 {[%emt 0:01:11]}
Bxd4 {[%emt 0:00:49]} 20. Rxd4 {[%emt 0:00:02]} Rac8 {[%emt 0:00:01]} 21. Rcd1
{[%emt 0:00:43]} Rc7 {[%emt 0:00:07]} 22. Qd3 {[%emt 0:02:01]} g6 {[%emt 0:00:
22]} 23. Bf3 {[%emt 0:00:29]} Nc5 {[%emt 0:01:32]} 24. Qa3 {[%emt 0:00:01]}
Rfc8 {[%emt 0:01:01]} 25. Qa5 {[%emt 0:00:37]} Ne6 {[%emt 0:01:37]} 26. R4d2 {
[%emt 0:00:32]} Ng5 {[%emt 0:00:25]} 27. Bd5 {[%emt 0:00:37]} Rc1 {[%emt 0:00:
13]} 28. h4 {[%emt 0:01:09]} Ne4 {[%emt 0:00:13]} 29. Bxe4 {[%emt 0:01:10]}
Qxe4 {[%emt 0:00:09]} 30. Qd8+ {[%emt 0:02:12]} Kg7 {[%emt 0:00:26]} 31. Rxc1 {
[%emt 0:00:10]} Rxc1+ {[%emt 0:00:01]} 32. Kh2 {[%emt 0:00:01]} Qe5+ {[%emt 0:
00:15]} 33. g3 {[%emt 0:00:20]} Qe4 {[%emt 0:00:07]} 34. Qd4+ {[%emt 0:00:02]}
Qxd4 {[%emt 0:00:27]} 35. exd4 {[%emt 0:00:01]} Kf6 {[%emt 0:00:00]} 36. Kg2 {
[%emt 0:00:18]} Ke6 {[%emt 0:00:02]} 37. Kf3 {[%emt 0:00:06]} Kd5 {[%emt 0:00:
03]} 38. Ke3 {[%emt 0:00:01]} Re1+ {[%emt 0:00:38]} 39. Kd3 {[%emt 0:00:17]}
Re4 {[%emt 0:00:02]} 40. Kc3 {[%emt 0:00:01]} f4 {[%emt 0:00:01]} 41. Rd3 {
[%emt 0:00:34]} fxg3 {[%emt 0:00:03]} 42. fxg3 {[%emt 0:00:02]} f5 {[%emt 0:00:
35]} 43. Kb4 {[%emt 0:02:29]} Rxd4+ {[%emt 0:00:44]} 44. Rxd4+ {[%emt 0:00:01]}
Kxd4 45. Ka5 {[%emt 0:00:00]} h6 {[%emt 0:00:02]} 46. Kxa6 {[%emt 0:00:54]} Kc5
{[%emt 0:00:41]} 47. Ka5 {[%emt 0:00:14]} g5 {[%emt 0:00:06]} 48. b4+ {[%emt 0:
00:37]} Kc4 {[%emt 0:00:27]} 49. a4 {[%emt 0:00:18]} bxa4 {[%emt 0:00:01]} 50.
Kxa4 {[%emt 0:00:01]} f4 {[%emt 0:00:01]} 51. b5 {[%emt 0:00:08]} f3 {[%emt 0:
00:17]} 52. b6 {[%emt 0:00:08]} f2 {[%emt 0:00:01]} 53. b7 {[%emt 0:00:14]}
f1=Q {[%emt 0:00:01]} 54. Ka5 {[%emt 0:00:03]} Qf8 {[%emt 0:00:06]} 55. Kb6 {
[%emt 0:00:05]} Qb8 {[%emt 0:00:02]} 0-1

[Event "European Rapid Championship 2021"]
[Site "Katowice"]
[Date "2021.12.19"]
[Round "11.4"]
[White "Fridman, Daniel"]
[Black "Krasenkow, Michal"]
[Result "1/2-1/2"]
[ECO "D85"]
[WhiteElo "2626"]
[BlackElo "2576"]
[Annotator "ChessBase"]
[PlyCount "122"]
[EventDate "2021.12.18"]
[EventType "swiss"]
[EventCountry "POL"]
[SourceTitle "playchess.com"]
[Source "ChessBase"]
[SourceQuality "1"]
[TimeControl "900+10"]

1. d4 {[%emt 0:00:23]} Nf6 {[%emt 0:00:10]} 2. c4 {[%emt 0:00:02]} g6 {[%emt 0:
00:01]} 3. Nc3 {[%emt 0:00:01]} d5 {[%emt 0:00:00]} 4. cxd5 {[%emt 0:00:03]}
Nxd5 {[%emt 0:00:01]} 5. Bd2 {[%emt 0:00:02]} Nb6 {[%emt 0:00:03]} 6. Nf3 {
[%emt 0:00:12]} Bg7 {[%emt 0:00:21]} 7. Bg5 {[%emt 0:00:54]} c5 {[%emt 0:00:20]
} 8. e3 {[%emt 0:00:16]} cxd4 {[%emt 0:00:09]} 9. Nxd4 {[%emt 0:00:03]} Nc6 {
[%emt 0:00:57]} 10. Nxc6 {[%emt 0:00:21]} Bxc3+ {[%emt 0:00:10]} 11. bxc3 {
[%emt 0:00:04]} Qxd1+ {[%emt 0:00:04]} 12. Kxd1 {[%emt 0:06:36]} bxc6 {[%emt 0:
00:02]} 13. e4 {[%emt 0:00:02]} Be6 {[%emt 0:00:30]} 14. Kc2 {[%emt 0:00:05]}
Nc4 {[%emt 0:01:41]} 15. a4 {[%emt 0:01:09]} Rb8 {[%emt 0:00:21]} 16. Bxc4 {
[%emt 0:00:16]} Bxc4 {[%emt 0:00:02]} 17. Rab1 {[%emt 0:00:10]} Kd7 {[%emt 0:
00:24]} 18. Bf4 {[%emt 0:00:22]} Rxb1 {[%emt 0:01:48]} 19. Rxb1 {[%emt 0:00:02]
} Ba6 {[%emt 0:00:00]} 20. Bb8 {[%emt 0:00:12]} Ke6 {[%emt 0:04:35]} 21. Bxa7 {
[%emt 0:00:03]} Rd8 {[%emt 0:00:00]} 22. Bd4 {[%emt 0:01:28]} c5 {[%emt 0:00:
17]} 23. Rb6+ {[%emt 0:00:02]} Rd6 {[%emt 0:00:01]} 24. Bxc5 {[%emt 0:00:01]}
Bd3+ {[%emt 0:00:01]} 25. Kb3 Rxb6+ {[%emt 0:00:05]} 26. Bxb6 {[%emt 0:00:11]}
Bxe4 {[%emt 0:00:01]} 27. f3 {[%emt 0:00:06]} Bd3 {[%emt 0:00:07]} 28. c4 {
[%emt 0:00:50]} Kd6 {[%emt 0:00:15]} 29. a5 {[%emt 0:00:10]} Kc6 {[%emt 0:00:
50]} 30. Bd8 {[%emt 0:00:02]} e5 {[%emt 0:00:10]} 31. Bf6 {[%emt 0:01:24]} Bf1
{[%emt 0:00:15]} 32. g4 {[%emt 0:00:21]} Bg2 {[%emt 0:00:17]} 33. Bxe5 {
[%emt 0:00:11]} Bxf3 {[%emt 0:00:01]} 34. g5 {[%emt 0:00:01]} Bg4 {[%emt 0:00:
40]} 35. Kc3 {[%emt 0:00:10]} Bc8 {[%emt 0:01:01]} 36. Kd4 {[%emt 0:00:03]} Ba6
{[%emt 0:01:50]} 37. Bf6 {[%emt 0:00:03]} Kd6 {[%emt 0:00:31]} 38. Bd8 {
[%emt 0:00:04]} Kc6 {[%emt 0:01:11]} 39. Bb6 {[%emt 0:00:18]} Kd6 {[%emt 0:00:
08]} 40. c5+ {[%emt 0:00:21]} Kc6 {[%emt 0:01:16]} 41. Ke5 {[%emt 0:00:02]} Bb5
{[%emt 0:00:00]} 42. Kf6 {[%emt 0:00:04]} Bc4 {[%emt 0:00:28]} 43. Kg7 {
[%emt 0:00:12]} Kd7 {[%emt 0:00:16]} 44. Kxh7 {[%emt 0:00:04]} Bb5 {[%emt 0:00:
37]} 45. Kg7 Ke7 46. Bc7 {[%emt 0:00:41]} Ke8 {[%emt 0:00:18]} 47. Kf6 {
[%emt 0:00:06]} Bc6 {[%emt 0:00:14]} 48. Bg3 {[%emt 0:01:45]} Bf3 {[%emt 0:00:
17]} 49. Bf2 {[%emt 0:00:51]} Bg2 {[%emt 0:00:07]} 50. Ke5 {[%emt 0:00:12]} Kd7
{[%emt 0:00:01]} 51. Kd4 {[%emt 0:00:01]} Kc6 {[%emt 0:00:15]} 52. Bg3 {
[%emt 0:01:03]} Bf3 {[%emt 0:00:08]} 53. a6 {[%emt 0:00:07]} Kd7 {[%emt 0:00:
22]} 54. Bf4 {[%emt 0:00:11]} Be2 {[%emt 0:00:06]} 55. a7 {[%emt 0:00:15]} Bf3
{[%emt 0:00:01]} 56. Kc4 {[%emt 0:00:40]} Bc6 {[%emt 0:00:06]} 57. h4 {[%emt 0:
00:08]} Bf3 {[%emt 0:00:04]} 58. Kd4 {[%emt 0:00:05]} Bg2 {[%emt 0:00:34]} 59.
Ke5 {[%emt 0:00:02]} Bf3 {[%emt 0:00:06]} 60. Kf6 {[%emt 0:00:20]} Ke8 {
[%emt 0:00:02]} 61. Bd2 {[%emt 0:00:08]} Bg2 {[%emt 0:00:09]} 1/2-1/2

[Event "European Rapid Championship 2021"]
[Site "Katowice"]
[Date "2021.12.19"]
[Round "11.4"]
[White "Nasuta, Grzegorz"]
[Black "Mirski, Michal"]
[Result "1-0"]
[ECO "B31"]
[WhiteElo "2345"]
[BlackElo "1852"]
[Annotator "NA"]
[PlyCount "123"]
[EventDate "2021.12.18"]
[EventType "swiss"]
[EventCountry "POL"]
[SourceTitle "playchess.com"]
[Source "ChessBase"]
[SourceQuality "1"]
[TimeControl "900+10"]

1. e4 {[%emt 0:00:02]} c5 {[%emt 0:00:01]} 2. Nf3 {[%emt 0:00:01]} Nc6 {
[%emt 0:00:01]} 3. Bb5 {[%emt 0:00:01]} g6 {[%emt 0:00:02]} 4. Bxc6 {[%emt 0:
00:02]} dxc6 {[%emt 0:00:01]} 5. d3 {[%emt 0:00:01]} Bg7 {[%emt 0:00:02]} 6. h3
{[%emt 0:00:01]} e5 {[%emt 0:00:02]} 7. Be3 {[%emt 0:00:04]} b6 {[%emt 0:00:01]
} 8. a4 {[%emt 0:00:02]} a5 {[%emt 0:00:08]} 9. Na3 {[%emt 0:00:02]} Ba6 {
[%emt 0:00:51]} 10. Nd2 {[%emt 0:01:11]} Nf6 {[%emt 0:00:10]} 11. Nac4 {
[%emt 0:00:04]} Qc7 {[%emt 0:01:03]} 12. b4 {[%emt 0:00:08]} axb4 {[%emt 0:00:
52]} 13. a5 {[%emt 0:00:02]} Nd7 {[%emt 0:01:51]} 14. axb6 {[%emt 0:00:15]}
Nxb6 {[%emt 0:00:03]} 15. Bxc5 {[%emt 0:00:44]} Nxc4 {[%emt 0:00:21]} 16. Nxc4
{[%emt 0:00:04]} Bf8 {[%emt 0:00:25]} 17. Bxf8 {[%emt 0:06:07]} Kxf8 {[%emt 0:
00:28]} 18. Ra5 {[%emt 0:00:02]} f6 {[%emt 0:03:55]} 19. Qa1 {[%emt 0:00:27]}
Qb7 {[%emt 0:00:01]} 20. Nd6 {[%emt 0:04:37]} Qc7 {[%emt 0:01:14]} 21. Rxa6 {
[%emt 0:01:10]} Rxa6 {[%emt 0:00:02]} 22. Qxa6 {[%emt 0:00:01]} Qxd6 {[%emt 0:
00:02]} 23. Qb7 {[%emt 0:00:01]} c5 {[%emt 0:02:11]} 24. O-O {[%emt 0:00:03]}
Qe7 {[%emt 0:00:01]} 25. Qb6 {[%emt 0:00:01]} Kg7 {[%emt 0:01:39]} 26. Ra1 {
[%emt 0:00:01]} Rd8 {[%emt 0:00:04]} 27. Ra7 {[%emt 0:02:28]} Rd7 {[%emt 0:00:
01]} 28. Rxd7 {[%emt 0:00:01]} Qxd7 {[%emt 0:00:01]} 29. Qxc5 {[%emt 0:00:01]}
Qb7 {[%emt 0:00:01]} 30. g3 {[%emt 0:00:01]} h5 {[%emt 0:02:01]} 31. h4 {
[%emt 0:00:14]} Kf7 {[%emt 0:00:06]} 32. Kf1 {[%emt 0:00:03]} Ke6 {[%emt 0:01:
14]} 33. Ke2 {[%emt 0:00:11]} f5 {[%emt 0:00:35]} 34. f3 {[%emt 0:00:52]} fxe4
{[%emt 0:00:47]} 35. fxe4 {[%emt 0:00:01]} Qb8 {[%emt 0:00:18]} 36. Qc6+ {
[%emt 0:00:51]} Kf7 {[%emt 0:00:04]} 37. Kd2 {[%emt 0:00:11]} Kg7 {[%emt 0:00:
06]} 38. Qe6 {[%emt 0:00:13]} Qc7 {[%emt 0:00:08]} 39. Qc4 {[%emt 0:00:52]} Qb6
{[%emt 0:00:02]} 40. d4 exd4 {[%emt 0:00:25]} 41. Kd3 {[%emt 0:00:02]} Kh6 {
[%emt 0:00:27]} 42. Qxd4 {[%emt 0:00:03]} Qb5+ {[%emt 0:00:03]} 43. Ke3 {
[%emt 0:00:02]} Kh7 {[%emt 0:00:16]} 44. e5 {[%emt 0:00:22]} b3 {[%emt 0:00:03]
} 45. cxb3 {[%emt 0:00:21]} Qxb3+ {[%emt 0:00:01]} 46. Kf4 {[%emt 0:00:01]}
Qf7+ {[%emt 0:00:04]} 47. Ke4 {[%emt 0:00:20]} Qb7+ {[%emt 0:00:05]} 48. Ke3 {
[%emt 0:00:14]} Qb3+ {[%emt 0:00:03]} 49. Qd3 {[%emt 0:00:08]} Qb6+ {[%emt 0:
00:01]} 50. Kf3 {[%emt 0:00:08]} Qc6+ {[%emt 0:00:03]} 51. Kf4 {[%emt 0:00:07]}
Qe6 {[%emt 0:00:10]} 52. Qe4 {[%emt 0:00:38]} Qg4+ {[%emt 0:00:04]} 53. Ke3 {
[%emt 0:00:00]} Qxg3+ {[%emt 0:00:01]} 54. Kd4 {[%emt 0:00:01]} Qf2+ {[%emt 0:
00:27]} 55. Kd5 {[%emt 0:00:02]} Qa2+ {[%emt 0:00:08]} 56. Kd6 {[%emt 0:00:17]}
Qa3+ {[%emt 0:00:32]} 57. Kd7 {[%emt 0:00:07]} Qa7+ {[%emt 0:00:10]} 58. Kc8 {
[%emt 0:00:30]} Qe7 {[%emt 0:00:19]} 59. Qb7 {[%emt 0:00:01]} Qxb7+ {[%emt 0:
00:07]} 60. Kxb7 {[%emt 0:00:01]} Kg7 {[%emt 0:00:02]} 61. Kc7 {[%emt 0:00:01]}
g5 {[%emt 0:00:18]} 62. e6 {[%emt 0:00:07]} 1-0

[Event "European Rapid Championship 2021"]
[Site "Katowice"]
[Date "2021.12.19"]
[Round "11.5"]
[White "Brodowski, Piotr"]
[Black "Klekowski, Maciej"]
[Result "1-0"]
[ECO "A27"]
[WhiteElo "2414"]
[BlackElo "2528"]
[Annotator "ChessBase"]
[PlyCount "95"]
[EventDate "2021.12.18"]
[EventType "swiss"]
[EventCountry "POL"]
[SourceTitle "playchess.com"]
[Source "ChessBase"]
[SourceQuality "1"]
[TimeControl "900+10"]

1. c4 {[%emt 0:00:03]} e5 {[%emt 0:00:03]} 2. Nc3 {[%emt 0:00:02]} Nc6 {
[%emt 0:00:01]} 3. Nf3 {[%emt 0:00:03]} f5 {[%emt 0:00:05]} 4. d4 {[%emt 0:00:
34]} e4 {[%emt 0:00:01]} 5. Ng5 {[%emt 0:00:18]} Nf6 {[%emt 0:00:06]} 6. g3 {
[%emt 0:00:23]} Bb4 {[%emt 0:00:18]} 7. Bg2 {[%emt 0:02:22]} Na5 {[%emt 0:01:
05]} 8. Qa4 {[%emt 0:01:16]} Bxc3+ {[%emt 0:00:04]} 9. bxc3 {[%emt 0:00:01]} b6
{[%emt 0:00:05]} 10. Ne6 {[%emt 0:00:58]} b5 {[%emt 0:00:13]} 11. Nxg7+ {
[%emt 0:00:48]} Kf7 {[%emt 0:00:03]} 12. Qxa5 {[%emt 0:00:23]} Kxg7 {[%emt 0:
00:04]} 13. cxb5 {[%emt 0:00:16]} c6 {[%emt 0:00:57]} 14. Qxd8 {[%emt 0:00:19]}
Rxd8 {[%emt 0:00:01]} 15. bxc6 {[%emt 0:00:07]} Ba6 {[%emt 0:00:08]} 16. c7 {
[%emt 0:02:41]} Rdc8 {[%emt 0:01:58]} 17. Bf4 {[%emt 0:00:02]} Nd5 {[%emt 0:00:
01]} 18. Be5+ {[%emt 0:00:01]} Kf7 {[%emt 0:00:01]} 19. Bh3 {[%emt 0:00:10]}
Kg6 {[%emt 0:00:39]} 20. g4 {[%emt 0:00:40]} Nxc7 {[%emt 0:00:49]} 21. gxf5+ {
[%emt 0:00:03]} Kf7 {[%emt 0:00:20]} 22. Rg1 {[%emt 0:00:11]} Ne8 {[%emt 0:00:
01]} 23. Kd2 {[%emt 0:00:23]} d6 {[%emt 0:00:08]} 24. Bf4 {[%emt 0:00:02]} Rc6
{[%emt 0:00:12]} 25. Rab1 {[%emt 0:00:49]} Rac8 {[%emt 0:00:27]} 26. Rb3 {
[%emt 0:00:02]} R8c7 {[%emt 0:00:00]} 27. Bg2 {[%emt 0:01:41]} Nf6 {[%emt 0:00:
26]} 28. Bg5 {[%emt 0:00:02]} Bc4 {[%emt 0:00:01]} 29. Ra3 {[%emt 0:01:16]} Rb6
{[%emt 0:00:09]} 30. Bxf6 {[%emt 0:00:20]} Kxf6 {[%emt 0:00:48]} 31. Bxe4 {
[%emt 0:00:10]} Rb2+ {[%emt 0:00:03]} 32. Bc2 {[%emt 0:00:10]} Bxe2 {[%emt 0:
00:02]} 33. Rb1 {[%emt 0:00:30]} Rxb1 {[%emt 0:00:01]} 34. Bxb1 {[%emt 0:00:01]
} Bc4 {[%emt 0:00:25]} 35. Bd3 {[%emt 0:00:02]} Bxd3 {[%emt 0:00:08]} 36. Kxd3
{[%emt 0:00:01]} Kxf5 {[%emt 0:00:01]} 37. Ra6 {[%emt 0:00:07]} Rd7 {[%emt 0:
00:03]} 38. c4 {[%emt 0:00:03]} Kf4 {[%emt 0:00:05]} 39. Ra5 {[%emt 0:00:21]}
Rb7 {[%emt 0:00:21]} 40. Rh5 {[%emt 0:00:06]} Rb2 {[%emt 0:00:14]} 41. Rxh7 {
[%emt 0:00:03]} Rxa2 {[%emt 0:00:02]} 42. Rf7+ {[%emt 0:00:01]} Kg5 {[%emt 0:
00:01]} 43. Ke4 a5 {[%emt 0:01:39]} 44. Kd5 {[%emt 0:00:34]} a4 {[%emt 0:00:14]
} 45. Kxd6 {[%emt 0:00:17]} Rd2 {[%emt 0:00:04]} 46. d5 {[%emt 0:00:02]} a3 {
[%emt 0:00:01]} 47. Ra7 {[%emt 0:00:01]} a2 {[%emt 0:00:02]} 48. c5 {[%emt 0:
00:01]} 1-0

[Event "European Rapid Championship 2021"]
[Site "Katowice"]
[Date "2021.12.19"]
[Round "11.5"]
[White "Spalir, Jernej"]
[Black "Paprocki, Jaroslaw"]
[Result "1-0"]
[ECO "D45"]
[WhiteElo "2340"]
[BlackElo "2165"]
[Annotator "NA"]
[PlyCount "131"]
[EventDate "2021.12.18"]
[EventType "swiss"]
[EventCountry "POL"]
[SourceTitle "playchess.com"]
[Source "ChessBase"]
[SourceQuality "1"]
[TimeControl "900+10"]

1. d4 {[%emt 0:00:03]} Nf6 {[%emt 0:00:03]} 2. c4 {[%emt 0:00:03]} e6 {[%emt 0:
00:02]} 3. Nf3 {[%emt 0:00:02]} d5 {[%emt 0:00:01]} 4. Nc3 {[%emt 0:00:02]} c6
{[%emt 0:00:07]} 5. e3 {[%emt 0:00:04]} Nbd7 {[%emt 0:00:01]} 6. Qc2 {[%emt 0:
00:05]} Bd6 {[%emt 0:00:14]} 7. g4 {[%emt 0:00:04]} Nxg4 {[%emt 0:01:05]} 8.
Rg1 {[%emt 0:00:02]} Nxh2 {[%emt 0:00:06]} 9. Nxh2 {[%emt 0:00:03]} Bxh2 {
[%emt 0:00:01]} 10. Rxg7 {[%emt 0:00:02]} Nf8 {[%emt 0:00:01]} 11. Rg2 {
[%emt 0:03:27]} Bd6 {[%emt 0:01:32]} 12. Bd2 {[%emt 0:00:01]} f5 {[%emt 0:01:
20]} 13. O-O-O {[%emt 0:00:07]} Ng6 {[%emt 0:00:36]} 14. Be2 {[%emt 0:00:25]}
Bd7 {[%emt 0:02:52]} 15. Rh1 {[%emt 0:00:09]} Kf7 {[%emt 0:00:06]} 16. f3 {
[%emt 0:01:18]} dxc4 {[%emt 0:01:08]} 17. Bxc4 {[%emt 0:00:04]} c5 {[%emt 0:00:
00]} 18. dxc5 {[%emt 0:00:25]} Rc8 {[%emt 0:00:26]} 19. Qxf5+ {[%emt 0:00:11]}
Kg7 {[%emt 0:00:45]} 20. Bxe6 {[%emt 0:00:27]} Bxe6 {[%emt 0:00:01]} 21. Qxe6 {
[%emt 0:00:04]} Rxc5 {[%emt 0:00:02]} 22. Kb1 {[%emt 0:00:57]} Re5 {[%emt 0:00:
02]} 23. Rxh7+ {[%emt 0:00:29]} Rxh7 24. Rxg6+ {[%emt 0:00:27]} Kh8 {[%emt 0:
00:39]} 25. Qxd6 {[%emt 0:00:01]} Qxd6 {[%emt 0:00:23]} 26. Rxd6 {[%emt 0:00:
03]} Rh2 {[%emt 0:00:09]} 27. e4 {[%emt 0:00:31]} Reh5 {[%emt 0:00:14]} 28. Kc2
{[%emt 0:00:08]} Rf2 {[%emt 0:00:03]} 29. f4 {[%emt 0:00:07]} b5 {[%emt 0:00:
12]} 30. Rd5 {[%emt 0:00:09]} Rhh2 {[%emt 0:00:08]} 31. f5 {[%emt 0:00:25]} a6
{[%emt 0:00:00]} 32. a3 {[%emt 0:00:20]} Kg7 {[%emt 0:00:01]} 33. Rd6 {[%emt 0:
00:53]} Kf7 {[%emt 0:00:14]} 34. f6 {[%emt 0:01:17]} Rxf6 {[%emt 0:00:12]} 35.
Rxf6+ {[%emt 0:00:03]} Kxf6 {[%emt 0:00:01]} 36. Kd3 {[%emt 0:00:07]} Ke5 {
[%emt 0:00:02]} 37. b4 {[%emt 0:00:24]} Rf2 {[%emt 0:00:50]} 38. Nd5 {[%emt 0:
00:08]} Kd6 {[%emt 0:00:31]} 39. Nc3 {[%emt 0:00:40]} Ke5 {[%emt 0:00:07]} 40.
Be3 {[%emt 0:00:03]} Rh2 {[%emt 0:00:41]} 41. Bd4+ {[%emt 0:00:08]} Kd6 {
[%emt 0:00:10]} 42. a4 {[%emt 0:00:54]} bxa4 {[%emt 0:00:28]} 43. Nxa4 {
[%emt 0:00:02]} Kc6 {[%emt 0:00:22]} 44. Kc4 {[%emt 0:00:07]} Rc2+ {[%emt 0:01:
19]} 45. Bc3 {[%emt 0:00:02]} Rc1 {[%emt 0:01:24]} 46. Nc5 {[%emt 0:00:04]} Kb6
{[%emt 0:00:12]} 47. e5 {[%emt 0:00:03]} Rh1 {[%emt 0:01:34]} 48. e6 {[%emt 0:
00:02]} Rh4+ {[%emt 0:01:02]} 49. Kd5 {[%emt 0:00:07]} Rh7 {[%emt 0:00:21]} 50.
Kd6 {[%emt 0:00:08]} Kb5 {[%emt 0:00:04]} 51. Nxa6 {[%emt 0:00:09]} Rh3 {
[%emt 0:00:35]} 52. e7 {[%emt 0:00:45]} Rd3+ {[%emt 0:00:04]} 53. Ke6 {[%emt 0:
00:01]} Rxc3 {[%emt 0:00:23]} 54. e8=Q+ {[%emt 0:00:04]} Kxa6 {[%emt 0:00:01]}
55. Kd5 {[%emt 0:00:15]} Kb7 {[%emt 0:00:22]} 56. Qe7+ {[%emt 0:00:08]} Kb8 {
[%emt 0:00:41]} 57. Qe5+ {[%emt 0:00:05]} Rc7 {[%emt 0:00:02]} 58. Qxc7+ {
[%emt 0:00:02]} Kxc7 {[%emt 0:00:00]} 59. Kc5 {[%emt 0:00:01]} Kb7 {[%emt 0:00:
01]} 60. Kb5 {[%emt 0:00:00]} Ka7 {[%emt 0:00:01]} 61. Kc6 {[%emt 0:00:02]} Ka8
{[%emt 0:00:02]} 62. Kb6 {[%emt 0:00:38]} Kb8 {[%emt 0:00:00]} 63. b5 {[%emt 0:
00:09]} Ka8 {[%emt 0:00:01]} 64. Kc7 {[%emt 0:00:01]} Ka7 {[%emt 0:00:01]} 65.
b6+ {[%emt 0:00:05]} Ka8 {[%emt 0:00:48]} 66. b7+ {[%emt 0:00:03]} 1-0

[Event "European Rapid Championship 2021"]
[Site "Katowice"]
[Date "2021.12.19"]
[Round "11.6"]
[White "Piesik, Piotr"]
[Black "Janik, Igor"]
[Result "0-1"]
[ECO "E20"]
[WhiteElo "2342"]
[BlackElo "2462"]
[Annotator "ChessBase"]
[PlyCount "134"]
[EventDate "2021.12.18"]
[EventType "swiss"]
[EventCountry "POL"]
[SourceTitle "playchess.com"]
[Source "ChessBase"]
[SourceQuality "1"]
[TimeControl "900+10"]

1. d4 {[%emt 0:00:01]} Nf6 {[%emt 0:00:20]} 2. c4 {[%emt 0:00:02]} e6 {[%emt 0:
00:01]} 3. Nc3 {[%emt 0:00:01]} Bb4 {[%emt 0:00:04]} 4. f3 {[%emt 0:00:01]} c5
{[%emt 0:00:07]} 5. d5 {[%emt 0:00:02]} O-O {[%emt 0:00:09]} 6. e4 {[%emt 0:00:
02]} d6 {[%emt 0:00:02]} 7. Nge2 {[%emt 0:00:02]} a6 {[%emt 0:00:02]} 8. Ng3 {
[%emt 0:00:06]} exd5 {[%emt 0:00:08]} 9. cxd5 {[%emt 0:00:02]} b5 {[%emt 0:00:
02]} 10. Be2 {[%emt 0:00:14]} Nbd7 {[%emt 0:00:27]} 11. O-O {[%emt 0:00:39]} c4
{[%emt 0:00:07]} 12. a4 {[%emt 0:00:19]} Rb8 {[%emt 0:00:30]} 13. axb5 {
[%emt 0:00:09]} axb5 {[%emt 0:00:02]} 14. Kh1 {[%emt 0:00:43]} Nc5 {[%emt 0:00:
05]} 15. Bf4 {[%emt 0:00:17]} Re8 {[%emt 0:00:35]} 16. Ra2 {[%emt 0:01:16]} Qb6
{[%emt 0:01:42]} 17. Qc2 {[%emt 0:02:45]} Nfd7 {[%emt 0:01:31]} 18. Be3 {
[%emt 0:01:58]} Qd8 {[%emt 0:02:26]} 19. Nd1 {[%emt 0:01:12]} Nb3 {[%emt 0:00:
28]} 20. Nf2 {[%emt 0:03:26]} Bc5 {[%emt 0:00:09]} 21. Bxc5 {[%emt 0:00:01]}
Ndxc5 {[%emt 0:00:02]} 22. Qc3 {[%emt 0:00:23]} g6 {[%emt 0:01:21]} 23. Bd1 {
[%emt 0:00:59]} Qg5 {[%emt 0:01:31]} 24. Bxb3 {[%emt 0:00:12]} Nxb3 {[%emt 0:
00:02]} 25. Ra7 {[%emt 0:00:18]} Qd8 {[%emt 0:01:48]} 26. Ng4 {[%emt 0:00:42]}
Bxg4 {[%emt 0:00:17]} 27. fxg4 {[%emt 0:00:00]} Re7 {[%emt 0:00:15]} 28. Qe3 {
[%emt 0:01:23]} Nc5 {[%emt 0:00:32]} 29. Rxe7 {[%emt 0:01:23]} Qxe7 30. Qf4 {
[%emt 0:00:28]} Nd3 {[%emt 0:00:19]} 31. Qf3 {[%emt 0:00:24]} Ne5 {[%emt 0:00:
19]} 32. Qf4 {[%emt 0:00:19]} b4 33. Ne2 {[%emt 0:00:02]} Rc8 {[%emt 0:00:48]}
34. Nd4 {[%emt 0:00:21]} c3 {[%emt 0:00:02]} 35. bxc3 {[%emt 0:00:01]} bxc3 36.
Nc2 {[%emt 0:00:01]} Rb8 {[%emt 0:00:30]} 37. h3 {[%emt 0:00:28]} Rb2 {[%emt 0:
00:39]} 38. Nd4 {[%emt 0:00:19]} c2 {[%emt 0:01:05]} 39. Qd2 {[%emt 0:00:10]}
Nc4 {[%emt 0:00:53]} 40. Qd3 {[%emt 0:00:01]} Ne5 {[%emt 0:00:11]} 41. Qa6 {
[%emt 0:00:26]} Qc7 {[%emt 0:00:24]} 42. Rc1 {[%emt 0:00:15]} Rb1 {[%emt 0:00:
28]} 43. Qf1 {[%emt 0:00:01]} Qc4 {[%emt 0:00:57]} 44. Rxb1 {[%emt 0:00:19]}
cxb1=Q {[%emt 0:00:03]} 45. Qxb1 {[%emt 0:00:01]} Qxd4 46. Qb8+ {[%emt 0:00:03]
} Kg7 {[%emt 0:00:05]} 47. Qxd6 {[%emt 0:00:01]} Qxe4 {[%emt 0:00:05]} 48. g5 {
[%emt 0:00:07]} Qf5 {[%emt 0:00:44]} 49. Qe7 {[%emt 0:00:08]} Nc4 {[%emt 0:00:
07]} 50. Qc5 {[%emt 0:00:12]} Qf1+ {[%emt 0:00:12]} 51. Kh2 {[%emt 0:00:01]}
Qf4+ {[%emt 0:00:00]} 52. Kh1 {[%emt 0:00:03]} h6 {[%emt 0:00:30]} 53. gxh6+ {
[%emt 0:00:02]} Kxh6 {[%emt 0:00:03]} 54. Qf8+ {[%emt 0:00:19]} Kh7 {[%emt 0:
00:00]} 55. Qb4 {[%emt 0:00:37]} Qd4 {[%emt 0:00:14]} 56. Qb7 {[%emt 0:00:18]}
Kg7 {[%emt 0:00:07]} 57. Qc6 {[%emt 0:00:10]} Qa1+ {[%emt 0:00:05]} 58. Kh2 {
[%emt 0:00:01]} Qe5+ {[%emt 0:00:01]} 59. Kh1 {[%emt 0:00:01]} Nd6 {[%emt 0:00:
01]} 60. Qc5 {[%emt 0:00:14]} Nf5 {[%emt 0:00:09]} 61. Qc6 {[%emt 0:00:30]} Ne7
{[%emt 0:00:06]} 62. Qd7 {[%emt 0:00:07]} Nxd5 {[%emt 0:00:03]} 63. Qg4 {
[%emt 0:00:06]} Nf6 {[%emt 0:00:02]} 64. Qf3 {[%emt 0:00:04]} Ne4 {[%emt 0:00:
05]} 65. Kg1 {[%emt 0:00:06]} Ng3 {[%emt 0:00:09]} 66. Kf2 {[%emt 0:00:09]} Nf5
{[%emt 0:00:04]} 67. Kg1 {[%emt 0:00:00]} Qe3+ {[%emt 0:00:02]} 0-1